[Event "Early-Titled-Tuesday-Blitz-January-23-2024"]
[Site "Chess.com"]
[Date "2024.01.23"]
[Round "3"]
[White "Arystanner"]
[Black "Oleksandr_Bortnyk"]
[Result "0-1"]
[WhiteElo "2781"]
[BlackElo "3083"]
[TimeControl "180+1"]
[EndTime "8:25:31 PST"]
[Termination "Oleksandr_Bortnyk won by resignation"]

1. e4 {[%clk 0:02:55.9]} 1... Nf6 {[%clk 0:02:59.1]} 2. e5 {[%clk 0:02:56.1]}
2... Nd5 {[%clk 0:02:59.1]} 3. d4 {[%clk 0:02:56.9]} 3... d6 {[%clk 0:02:59.3]}
4. c4 {[%clk 0:02:57.6]} 4... Nb6 {[%clk 0:02:59.6]} 5. exd6 {[%clk 0:02:58.3]}
5... exd6 {[%clk 0:03:00]} 6. Nf3 {[%clk 0:02:53.8]} 6... Be7 {[%clk 0:03:00.6]}
7. Bd3 {[%clk 0:02:51.3]} 7... Bg4 {[%clk 0:02:59.6]} 8. h3 {[%clk 0:02:51.8]}
8... Bh5 {[%clk 0:03:00.1]} 9. O-O {[%clk 0:02:49.2]} 9... Nc6 {[%clk
0:02:59.8]} 10. Be3 {[%clk 0:02:47.5]} 10... O-O {[%clk 0:02:59.8]} 11. Nc3
{[%clk 0:02:44.6]} 11... Nb4 {[%clk 0:02:59.3]} 12. Be2 {[%clk 0:02:41.9]} 12...
Re8 {[%clk 0:02:55]} 13. a3 {[%clk 0:02:28]} 13... Nc6 {[%clk 0:02:55]} 14. d5
{[%clk 0:02:25.3]} 14... Bxf3 {[%clk 0:02:51.2]} 15. Bxf3 {[%clk 0:02:20.4]}
15... Ne5 {[%clk 0:02:51.9]} 16. Bxb6 {[%clk 0:02:17.2]} 16... axb6 {[%clk
0:02:48.9]} 17. Be2 {[%clk 0:02:16.8]} 17... Bf6 {[%clk 0:02:35.5]} 18. Rc1
{[%clk 0:02:17.2]} 18... Ng6 {[%clk 0:02:33.8]} 19. Bf3 {[%clk 0:02:08.5]} 19...
Bxc3 {[%clk 0:02:25]} 20. Rxc3 {[%clk 0:02:08.4]} 20... Qf6 {[%clk 0:02:25.1]}
21. Re1 {[%clk 0:02:05.1]} 21... Rxe1+ {[%clk 0:02:16.9]} 22. Qxe1 {[%clk
0:02:05.1]} 22... Ne5 {[%clk 0:02:17.8]} 23. Be2 {[%clk 0:02:05.2]} 23... g6
{[%clk 0:02:11.6]} 24. Bf1 {[%clk 0:02:01.2]} 24... h5 {[%clk 0:02:10.7]} 25.
Qe4 {[%clk 0:01:57.5]} 25... Kg7 {[%clk 0:02:07.1]} 26. Re3 {[%clk 0:01:45.9]}
26... Ra4 {[%clk 0:01:45.6]} 27. Qc2 {[%clk 0:01:40.4]} 27... Ra8 {[%clk
0:01:43.8]} 28. Be2 {[%clk 0:01:40.2]} 28... Re8 {[%clk 0:01:38.3]} 29. Qe4
{[%clk 0:01:36.4]} 29... Ng4 {[%clk 0:01:32.4]} 30. hxg4 {[%clk 0:01:04.6]}
30... Rxe4 {[%clk 0:01:31.5]} 31. Rxe4 {[%clk 0:01:05.5]} 31... hxg4 {[%clk
0:01:30.5]} 32. Bxg4 {[%clk 0:00:59.8]} 32... Qxb2 {[%clk 0:01:29.8]} 33. Re7
{[%clk 0:01:00]} 33... Qc1+ {[%clk 0:01:26.7]} 34. Kh2 {[%clk 0:01:00.4]} 34...
Qxc4 {[%clk 0:01:20.7]} 0-1

[Event "Early-Titled-Tuesday-Blitz-January-23-2024"]
[Site "Chess.com"]
[Date "2024.01.23"]
[Round "3"]
[White "Chempiblinka"]
[Black "IsaqueGoncalvesSanto"]
[Result "1-0"]
[WhiteElo "2319"]
[BlackElo "1793"]
[TimeControl "180+1"]
[EndTime "8:25:31 PST"]
[Termination "Chempiblinka won on time"]

1. Nf3 {[%clk 0:03:00.9]} 1... e6 {[%clk 0:02:55]} 2. c4 {[%clk 0:03:01]} 2...
d5 {[%clk 0:02:54.7]} 3. g3 {[%clk 0:03:01.2]} 3... c6 {[%clk 0:02:54.8]} 4. Bg2
{[%clk 0:03:01.6]} 4... Nf6 {[%clk 0:02:53.3]} 5. O-O {[%clk 0:03:01]} 5... Be7
{[%clk 0:02:53.5]} 6. d4 {[%clk 0:02:59.3]} 6... O-O {[%clk 0:02:49.6]} 7. Qc2
{[%clk 0:03:00.2]} 7... b6 {[%clk 0:02:44.4]} 8. Nbd2 {[%clk 0:02:40]} 8... a5
{[%clk 0:02:36.5]} 9. e4 {[%clk 0:02:36.7]} 9... dxe4 {[%clk 0:02:16.1]} 10.
Nxe4 {[%clk 0:02:36.9]} 10... Ba6 {[%clk 0:02:08.4]} 11. b3 {[%clk 0:02:29.2]}
11... Nbd7 {[%clk 0:01:46.8]} 12. Bb2 {[%clk 0:02:24.8]} 12... Nxe4 {[%clk
0:01:39.7]} 13. Qxe4 {[%clk 0:02:25.7]} 13... Rc8 {[%clk 0:01:32.8]} 14. Rfd1
{[%clk 0:02:22.7]} 14... Nf6 {[%clk 0:01:32.1]} 15. Qe3 {[%clk 0:02:15]} 15...
Ng4 {[%clk 0:01:19.2]} 16. Qe2 {[%clk 0:02:04.4]} 16... Bf6 {[%clk 0:01:15.8]}
17. Ne5 {[%clk 0:01:58.5]} 17... Bxe5 {[%clk 0:00:47.3]} 18. dxe5 {[%clk
0:01:57.1]} 18... Qg5 {[%clk 0:00:46.7]} 19. h4 {[%clk 0:01:45.6]} 1-0

[Event "Early-Titled-Tuesday-Blitz-January-23-2024"]
[Site "Chess.com"]
[Date "2024.01.23"]
[Round "3"]
[White "only_strong_moves"]
[Black "Chessbard1972"]
[Result "1-0"]
[WhiteElo "2614"]
[BlackElo "2432"]
[TimeControl "180+1"]
[EndTime "8:25:35 PST"]
[Termination "only_strong_moves won by checkmate"]

1. d4 {[%clk 0:02:59.7]} 1... Nf6 {[%clk 0:02:58.6]} 2. Nc3 {[%clk 0:03:00.2]}
2... d5 {[%clk 0:02:58]} 3. Bf4 {[%clk 0:03:00.8]} 3... Bf5 {[%clk 0:02:56.6]}
4. e3 {[%clk 0:03:00.5]} 4... e6 {[%clk 0:02:56.3]} 5. Nf3 {[%clk 0:03:00.7]}
5... Bb4 {[%clk 0:02:55.3]} 6. a3 {[%clk 0:02:59.1]} 6... Bxc3+ {[%clk
0:02:54.9]} 7. bxc3 {[%clk 0:03:00]} 7... h6 {[%clk 0:02:51.2]} 8. Ne5 {[%clk
0:03:00]} 8... Nbd7 {[%clk 0:02:49.3]} 9. Rb1 {[%clk 0:02:56.7]} 9... Rb8 {[%clk
0:02:42.3]} 10. Bb5 {[%clk 0:02:52.2]} 10... O-O {[%clk 0:02:36.9]} 11. g4
{[%clk 0:02:49.4]} 11... Nxe5 {[%clk 0:02:27.7]} 12. gxf5 {[%clk 0:02:48.1]}
12... Nc4 {[%clk 0:02:24.4]} 13. Bxc4 {[%clk 0:02:47.7]} 13... dxc4 {[%clk
0:02:23.5]} 14. Rg1 {[%clk 0:02:47.7]} 14... Kh8 {[%clk 0:02:20.8]} 15. Qf3
{[%clk 0:02:42.7]} 15... exf5 {[%clk 0:02:07.5]} 16. Qh3 {[%clk 0:02:42.4]}
16... Ng8 {[%clk 0:01:59.9]} 17. Qg3 {[%clk 0:02:40.4]} 17... g6 {[%clk
0:01:36.4]} 18. Bxc7 {[%clk 0:02:35.4]} 18... Qe8 {[%clk 0:01:29.3]} 19. Bxb8
{[%clk 0:02:30.9]} 19... Qxb8 {[%clk 0:01:29.4]} 20. Qxb8 {[%clk 0:02:31.8]}
20... Rxb8 {[%clk 0:01:29.4]} 21. f3 {[%clk 0:02:28.8]} 21... Nf6 {[%clk
0:01:28.3]} 22. Kd2 {[%clk 0:02:29.3]} 22... b5 {[%clk 0:01:26.6]} 23. a4 {[%clk
0:02:29.3]} 23... a6 {[%clk 0:01:26.5]} 24. axb5 {[%clk 0:02:29.9]} 24... axb5
{[%clk 0:01:26.5]} 25. Rb2 {[%clk 0:02:29.8]} 25... Nd5 {[%clk 0:01:20]} 26. e4
{[%clk 0:02:30]} 26... fxe4 {[%clk 0:01:18.6]} 27. fxe4 {[%clk 0:02:30.9]} 27...
Nf6 {[%clk 0:01:18.1]} 28. Re1 {[%clk 0:02:25.9]} 28... Re8 {[%clk 0:01:16.7]}
29. e5 {[%clk 0:02:25.3]} 29... Ng4 {[%clk 0:01:10.6]} 30. Rxb5 {[%clk
0:02:24.6]} 30... Nxh2 {[%clk 0:01:09]} 31. Rh1 {[%clk 0:02:23.4]} 31... Ng4
{[%clk 0:01:06.3]} 32. Rc5 {[%clk 0:02:23]} 32... Kg7 {[%clk 0:01:00.7]} 33.
Rxc4 {[%clk 0:02:23.2]} 33... h5 {[%clk 0:00:58.3]} 34. Rc7 {[%clk 0:02:23.5]}
34... Nf2 {[%clk 0:00:43.2]} 35. Rxf7+ {[%clk 0:02:09.6]} 35... Kxf7 {[%clk
0:00:39]} 36. Rf1 {[%clk 0:02:10]} 36... g5 {[%clk 0:00:34]} 37. Rxf2+ {[%clk
0:02:10.9]} 37... Ke6 {[%clk 0:00:33.7]} 38. Rf6+ {[%clk 0:02:10.7]} 38... Kd5
{[%clk 0:00:33.3]} 39. Kd3 {[%clk 0:02:11]} 39... Rd8 {[%clk 0:00:25.7]} 40. c4#
{[%clk 0:02:10.9]} 1-0

[Event "Early-Titled-Tuesday-Blitz-January-23-2024"]
[Site "Chess.com"]
[Date "2024.01.23"]
[Round "3"]
[White "betta2004"]
[Black "EdmundPlayer"]
[Result "1-0"]
[WhiteElo "2549"]
[BlackElo "2256"]
[TimeControl "180+1"]
[EndTime "8:25:37 PST"]
[Termination "betta2004 won by checkmate"]

1. d4 {[%clk 0:03:00.9]} 1... Nf6 {[%clk 0:02:27.3]} 2. Nc3 {[%clk 0:02:58.3]}
2... d5 {[%clk 0:02:26.6]} 3. Bf4 {[%clk 0:02:57.7]} 3... a6 {[%clk 0:02:19.6]}
4. e3 {[%clk 0:02:57.5]} 4... c5 {[%clk 0:02:19.7]} 5. dxc5 {[%clk 0:02:58.4]}
5... Nc6 {[%clk 0:02:18.8]} 6. a3 {[%clk 0:02:59]} 6... e5 {[%clk 0:02:18.5]} 7.
Bg5 {[%clk 0:02:59.6]} 7... Be6 {[%clk 0:02:18.1]} 8. b4 {[%clk 0:02:59.2]} 8...
Be7 {[%clk 0:02:16.1]} 9. Nf3 {[%clk 0:02:58.4]} 9... h6 {[%clk 0:02:12.4]} 10.
Bxf6 {[%clk 0:02:57.6]} 10... Bxf6 {[%clk 0:02:13.3]} 11. Be2 {[%clk 0:02:57.4]}
11... e4 {[%clk 0:02:04.6]} 12. Nd4 {[%clk 0:02:57.2]} 12... Nxd4 {[%clk
0:02:04.5]} 13. exd4 {[%clk 0:02:58.1]} 13... g5 {[%clk 0:01:50.2]} 14. Na4
{[%clk 0:02:53.1]} 14... Rc8 {[%clk 0:01:45.9]} 15. Nb6 {[%clk 0:02:51.2]} 15...
Rc7 {[%clk 0:01:43.8]} 16. a4 {[%clk 0:02:50.7]} 16... O-O {[%clk 0:01:32.9]}
17. c3 {[%clk 0:02:49.3]} 17... Bg7 {[%clk 0:01:28.7]} 18. Qb3 {[%clk
0:02:42.9]} 18... f5 {[%clk 0:01:25.9]} 19. O-O-O {[%clk 0:02:43.2]} 19... f4
{[%clk 0:01:13.9]} 20. Rhe1 {[%clk 0:02:34]} 20... g4 {[%clk 0:00:48.7]} 21. Bf1
{[%clk 0:02:30.6]} 21... Qg5 {[%clk 0:00:45.9]} 22. Rxe4 {[%clk 0:02:28.9]}
22... dxe4 {[%clk 0:00:41]} 23. Qxe6+ {[%clk 0:02:29.8]} 23... Rcf7 {[%clk
0:00:30.2]} 24. Qxe4 {[%clk 0:02:27.2]} 24... Kh8 {[%clk 0:00:27.1]} 25. f3
{[%clk 0:02:24.6]} 25... Re7 {[%clk 0:00:21.8]} 26. Qd5 {[%clk 0:02:24.9]} 26...
Qh4 {[%clk 0:00:17.8]} 27. fxg4 {[%clk 0:02:17.5]} 27... Qf2 {[%clk 0:00:15.9]}
28. Bd3 {[%clk 0:02:17.4]} 28... Re3 {[%clk 0:00:06.5]} 29. Nc4 {[%clk 0:02:14]}
29... Re1 {[%clk 0:00:06.4]} 30. Rxe1 {[%clk 0:02:08.3]} 30... Qxe1+ {[%clk
0:00:07.3]} 31. Kc2 {[%clk 0:02:09]} 31... f3 {[%clk 0:00:05.7]} 32. gxf3 {[%clk
0:02:08.3]} 32... Qf2+ {[%clk 0:00:05.9]} 33. Kb3 {[%clk 0:02:08.4]} 33... Rxf3
{[%clk 0:00:05.2]} 34. Qe4 {[%clk 0:02:08.6]} 34... Rf4 {[%clk 0:00:04.1]} 35.
Qh7# {[%clk 0:02:08.6]} 1-0

[Event "Early-Titled-Tuesday-Blitz-January-23-2024"]
[Site "Chess.com"]
[Date "2024.01.23"]
[Round "3"]
[White "ETTrainer"]
[Black "falzehope0"]
[Result "1-0"]
[WhiteElo "2596"]
[BlackElo "2423"]
[TimeControl "180+1"]
[EndTime "8:25:40 PST"]
[Termination "ETTrainer won by resignation"]

1. d4 {[%clk 0:03:00.9]} 1... e6 {[%clk 0:02:59.2]} 2. e4 {[%clk 0:03:00]} 2...
d5 {[%clk 0:02:59.6]} 3. Bd3 {[%clk 0:02:59.4]} 3... f5 {[%clk 0:02:56.3]} 4.
exf5 {[%clk 0:02:57.3]} 4... exf5 {[%clk 0:02:56.5]} 5. Nf3 {[%clk 0:02:57.3]}
5... Nf6 {[%clk 0:02:56.8]} 6. O-O {[%clk 0:02:57.7]} 6... Bd6 {[%clk
0:02:56.8]} 7. Ne5 {[%clk 0:02:51.8]} 7... O-O {[%clk 0:02:56.6]} 8. Bd2 {[%clk
0:02:49.4]} 8... Nc6 {[%clk 0:02:56.6]} 9. c3 {[%clk 0:02:48.7]} 9... Nxe5
{[%clk 0:02:55.2]} 10. dxe5 {[%clk 0:02:49.3]} 10... Bxe5 {[%clk 0:02:55.7]} 11.
Re1 {[%clk 0:02:40.6]} 11... Bd6 {[%clk 0:02:26.1]} 12. h3 {[%clk 0:02:39.7]}
12... Ne4 {[%clk 0:02:19.3]} 13. Be3 {[%clk 0:02:32.8]} 13... c6 {[%clk
0:02:17.1]} 14. c4 {[%clk 0:02:30.5]} 14... Be5 {[%clk 0:02:02.3]} 15. Qc2
{[%clk 0:02:27.6]} 15... Qf6 {[%clk 0:01:49.8]} 16. Bxe4 {[%clk 0:02:19.7]}
16... fxe4 {[%clk 0:01:42.9]} 17. Nc3 {[%clk 0:02:17.7]} 17... Be6 {[%clk
0:01:34.7]} 18. cxd5 {[%clk 0:02:16.3]} 18... cxd5 {[%clk 0:01:35.6]} 19. Rad1
{[%clk 0:02:16]} 19... Rac8 {[%clk 0:01:34.4]} 20. Qa4 {[%clk 0:02:04.4]} 20...
Bxc3 {[%clk 0:01:26.3]} 21. bxc3 {[%clk 0:02:05.3]} 21... Qxc3 {[%clk
0:01:19.4]} 22. Qxa7 {[%clk 0:02:02.8]} 22... Qc6 {[%clk 0:01:03.3]} 23. Rc1
{[%clk 0:01:51.3]} 23... Qa6 {[%clk 0:01:00.8]} 24. Qd4 {[%clk 0:01:50.5]} 24...
Rxc1 {[%clk 0:00:54.3]} 25. Rxc1 {[%clk 0:01:49.6]} 25... Qxa2 {[%clk
0:00:54.1]} 26. Qe5 {[%clk 0:01:48.9]} 26... Bf7 {[%clk 0:00:49.4]} 27. Bd4
{[%clk 0:01:48.9]} 1-0

[Event "Early-Titled-Tuesday-Blitz-January-23-2024"]
[Site "Chess.com"]
[Date "2024.01.23"]
[Round "3"]
[White "JeFumeDesClopes"]
[Black "Ezov"]
[Result "1-0"]
[WhiteElo "2546"]
[BlackElo "2227"]
[TimeControl "180+1"]
[EndTime "8:25:42 PST"]
[Termination "JeFumeDesClopes won by checkmate"]

1. Nf3 {[%clk 0:02:51.2]} 1... d5 {[%clk 0:02:58.3]} 2. g3 {[%clk 0:02:45.5]}
2... h5 {[%clk 0:02:57]} 3. c4 {[%clk 0:02:44.5]} 3... h4 {[%clk 0:02:55.3]} 4.
Nxh4 {[%clk 0:02:42.6]} 4... Nf6 {[%clk 0:02:52.8]} 5. cxd5 {[%clk 0:02:36.9]}
5... Nxd5 {[%clk 0:02:49.2]} 6. Nc3 {[%clk 0:02:35.8]} 6... c6 {[%clk
0:02:48.2]} 7. Bg2 {[%clk 0:02:33.9]} 7... g5 {[%clk 0:02:38.8]} 8. Nf3 {[%clk
0:02:33.2]} 8... g4 {[%clk 0:02:38.2]} 9. Nh4 {[%clk 0:02:31.7]} 9... Be6 {[%clk
0:02:33.2]} 10. d4 {[%clk 0:02:29.6]} 10... Na6 {[%clk 0:02:28.8]} 11. e4 {[%clk
0:02:27.4]} 11... Nxc3 {[%clk 0:02:24.6]} 12. bxc3 {[%clk 0:02:25.8]} 12... Qd7
{[%clk 0:02:13]} 13. Bf4 {[%clk 0:02:15.7]} 13... Bc4 {[%clk 0:02:05.5]} 14. Nf5
{[%clk 0:02:11.5]} 14... O-O-O {[%clk 0:01:18.8]} 15. Ne3 {[%clk 0:02:06.7]}
15... Be6 {[%clk 0:01:17.5]} 16. O-O {[%clk 0:01:57]} 16... Bg7 {[%clk
0:01:14.2]} 17. d5 {[%clk 0:01:56.3]} 17... cxd5 {[%clk 0:00:53.8]} 18. exd5
{[%clk 0:01:55.1]} 18... Bf5 {[%clk 0:00:51.5]} 19. Qb3 {[%clk 0:01:33]} 19...
Nc5 {[%clk 0:00:41.7]} 20. Qa3 {[%clk 0:01:32.7]} 20... b6 {[%clk 0:00:39.6]}
21. Nxf5 {[%clk 0:01:29.8]} 21... Qxf5 {[%clk 0:00:34.7]} 22. Qxa7 {[%clk
0:01:30.4]} 22... Qd7 {[%clk 0:00:20.5]} 23. Qb8# {[%clk 0:01:28.5]} 1-0

[Event "Early-Titled-Tuesday-Blitz-January-23-2024"]
[Site "Chess.com"]
[Date "2024.01.23"]
[Round "3"]
[White "Boninknights"]
[Black "MalyDominator"]
[Result "1-0"]
[WhiteElo "2355"]
[BlackElo "2546"]
[TimeControl "180+1"]
[EndTime "8:25:46 PST"]
[Termination "Boninknights won by resignation"]

1. d4 {[%clk 0:03:00.9]} 1... Nf6 {[%clk 0:02:48.8]} 2. Nf3 {[%clk 0:02:59.4]}
2... d5 {[%clk 0:02:47.7]} 3. c4 {[%clk 0:02:58.9]} 3... e6 {[%clk 0:02:48.1]}
4. Nc3 {[%clk 0:02:57.6]} 4... Bb4 {[%clk 0:02:48.6]} 5. Qa4+ {[%clk 0:02:55.6]}
5... Nc6 {[%clk 0:02:48.6]} 6. Bg5 {[%clk 0:02:54.1]} 6... h6 {[%clk 0:02:47.7]}
7. Bxf6 {[%clk 0:02:53.3]} 7... Qxf6 {[%clk 0:02:47.7]} 8. e3 {[%clk 0:02:52.7]}
8... O-O {[%clk 0:02:47.4]} 9. cxd5 {[%clk 0:02:47.5]} 9... exd5 {[%clk
0:02:47.4]} 10. Be2 {[%clk 0:02:46.6]} 10... Bd7 {[%clk 0:02:41.5]} 11. Rc1
{[%clk 0:02:42.4]} 11... Bxc3+ {[%clk 0:02:28.3]} 12. Rxc3 {[%clk 0:02:41.1]}
12... Rfd8 {[%clk 0:02:27.1]} 13. Qb3 {[%clk 0:02:33.2]} 13... Rab8 {[%clk
0:02:22]} 14. Qxd5 {[%clk 0:02:13]} 14... Be6 {[%clk 0:02:20.8]} 15. Qh5 {[%clk
0:02:08.1]} 15... Bxa2 {[%clk 0:02:18.2]} 16. b3 {[%clk 0:01:54.9]} 16... Bb1
{[%clk 0:02:17.7]} 17. O-O {[%clk 0:01:49.4]} 17... Bg6 {[%clk 0:02:16.5]} 18.
Qh4 {[%clk 0:01:48.4]} 18... Qd6 {[%clk 0:02:14]} 19. Rfc1 {[%clk 0:01:44.6]}
19... Rd7 {[%clk 0:02:13.4]} 20. Bb5 {[%clk 0:01:40.5]} 20... Qa3 {[%clk
0:01:44.4]} 21. Bxc6 {[%clk 0:01:37.6]} 21... bxc6 {[%clk 0:01:44.5]} 22. Ne5
{[%clk 0:01:35.9]} 22... Rd6 {[%clk 0:01:44.3]} 23. Nc4 {[%clk 0:01:29.6]} 23...
Qa2 {[%clk 0:01:43.4]} 24. Nxd6 {[%clk 0:01:28.4]} 24... cxd6 {[%clk 0:01:43.7]}
25. Rxc6 {[%clk 0:01:25.3]} 25... Qxb3 {[%clk 0:01:35.6]} 26. h3 {[%clk
0:01:20.2]} 26... a5 {[%clk 0:01:35.5]} 27. Rc8+ {[%clk 0:01:16]} 27... Kh7
{[%clk 0:01:34.1]} 28. Qd8 {[%clk 0:01:15.6]} 28... Rxc8 {[%clk 0:01:33.8]} 29.
Rxc8 {[%clk 0:01:13.1]} 29... Be4 {[%clk 0:01:31.9]} 30. Qh8+ {[%clk 0:01:10.8]}
30... Kg6 {[%clk 0:01:31.8]} 31. Rg8 {[%clk 0:01:09.4]} 31... Kh5 {[%clk
0:01:12.9]} 32. Qxg7 {[%clk 0:01:04.5]} 32... Bg6 {[%clk 0:01:13]} 33. Qf6
{[%clk 0:01:02.4]} 1-0

[Event "Early-Titled-Tuesday-Blitz-January-23-2024"]
[Site "Chess.com"]
[Date "2024.01.23"]
[Round "3"]
[White "GianmarcoVaR"]
[Black "Mikhail_Golubev"]
[Result "1-0"]
[WhiteElo "2753"]
[BlackElo "2507"]
[TimeControl "180+1"]
[EndTime "8:25:49 PST"]
[Termination "GianmarcoVaR won by resignation"]

1. d4 {[%clk 0:02:54.9]} 1... Nf6 {[%clk 0:02:59.1]} 2. Nf3 {[%clk 0:02:50.7]}
2... d6 {[%clk 0:02:58.5]} 3. Nc3 {[%clk 0:02:41.7]} 3... Bg4 {[%clk 0:02:56.4]}
4. Nd2 {[%clk 0:02:31.9]} 4... d5 {[%clk 0:02:42.3]} 5. f3 {[%clk 0:02:29.1]}
5... Bh5 {[%clk 0:02:37.3]} 6. g4 {[%clk 0:02:27.3]} 6... Bg6 {[%clk 0:02:37.2]}
7. h4 {[%clk 0:02:26.7]} 7... h5 {[%clk 0:02:14.6]} 8. g5 {[%clk 0:02:24.2]}
8... Qd6 {[%clk 0:02:14.2]} 9. Kf2 {[%clk 0:02:20.3]} 9... Nfd7 {[%clk 0:02:06]}
10. e4 {[%clk 0:02:15.6]} 10... e5 {[%clk 0:01:17.7]} 11. Nxd5 {[%clk
0:02:15.4]} 11... exd4 {[%clk 0:00:56.4]} 12. Nc4 {[%clk 0:02:15.6]} 12... Qc6
{[%clk 0:00:45.7]} 13. Bf4 {[%clk 0:02:12.6]} 13... Na6 {[%clk 0:00:45.5]} 14.
Na5 {[%clk 0:02:01]} 14... Qa4 {[%clk 0:00:39.1]} 15. Nb3 {[%clk 0:01:58.3]}
15... c6 {[%clk 0:00:33.4]} 16. Bxa6 {[%clk 0:01:48]} 16... cxd5 {[%clk
0:00:33]} 17. Bxb7 {[%clk 0:01:48.4]} 17... dxe4 {[%clk 0:00:32.3]} 18. Bxa8
{[%clk 0:01:44.3]} 18... e3+ {[%clk 0:00:31.6]} 19. Kg3 {[%clk 0:01:40]} 19...
Bc5 {[%clk 0:00:25.8]} 20. c3 {[%clk 0:01:25.9]} 20... d3 {[%clk 0:00:16.2]} 21.
Nxc5 {[%clk 0:01:24.2]} 1-0

[Event "Early-Titled-Tuesday-Blitz-January-23-2024"]
[Site "Chess.com"]
[Date "2024.01.23"]
[Round "3"]
[White "DenLaz"]
[Black "I_am_Javi"]
[Result "1-0"]
[WhiteElo "3083"]
[BlackElo "2782"]
[TimeControl "180+1"]
[EndTime "8:25:51 PST"]
[Termination "DenLaz won by resignation"]

1. d4 {[%clk 0:03:00.9]} 1... Nf6 {[%clk 0:02:58.6]} 2. c4 {[%clk 0:03:01.5]}
2... g6 {[%clk 0:02:57.6]} 3. g3 {[%clk 0:03:01.8]} 3... Bg7 {[%clk 0:02:57.2]}
4. Bg2 {[%clk 0:03:02.5]} 4... O-O {[%clk 0:02:58]} 5. Nc3 {[%clk 0:03:03.1]}
5... d6 {[%clk 0:02:58.3]} 6. Nf3 {[%clk 0:03:03.7]} 6... c5 {[%clk 0:02:58.5]}
7. O-O {[%clk 0:03:03.9]} 7... Nc6 {[%clk 0:02:57.3]} 8. dxc5 {[%clk 0:03:01.8]}
8... dxc5 {[%clk 0:02:58.2]} 9. Bf4 {[%clk 0:03:02.1]} 9... Be6 {[%clk 0:02:55]}
10. Ne5 {[%clk 0:03:00.1]} 10... Nxe5 {[%clk 0:02:48.5]} 11. Bxe5 {[%clk
0:02:59.8]} 11... Qb6 {[%clk 0:02:47.5]} 12. b3 {[%clk 0:02:58.3]} 12... Rad8
{[%clk 0:02:46.4]} 13. Qc2 {[%clk 0:02:56.1]} 13... Nd7 {[%clk 0:02:43.6]} 14.
Bxg7 {[%clk 0:02:54.6]} 14... Kxg7 {[%clk 0:02:44.5]} 15. Rad1 {[%clk
0:02:54.9]} 15... Nf6 {[%clk 0:02:41.6]} 16. Nd5 {[%clk 0:02:54.7]} 16... Bxd5
{[%clk 0:02:39.8]} 17. cxd5 {[%clk 0:02:55.6]} 17... Nd7 {[%clk 0:02:37.4]} 18.
e4 {[%clk 0:02:53.8]} 18... Rc8 {[%clk 0:02:36.8]} 19. Kh1 {[%clk 0:02:52]}
19... Rfd8 {[%clk 0:02:34.2]} 20. f4 {[%clk 0:02:51.7]} 20... Qa6 {[%clk
0:02:32.1]} 21. Qc3+ {[%clk 0:02:17.7]} 21... Kg8 {[%clk 0:02:29.7]} 22. e5
{[%clk 0:02:18.2]} 22... b5 {[%clk 0:02:11.3]} 23. f5 {[%clk 0:02:13.7]} 23...
b4 {[%clk 0:02:03.4]} 24. Qe3 {[%clk 0:02:11.9]} 24... c4 {[%clk 0:02:01.3]} 25.
bxc4 {[%clk 0:01:38.4]} 25... Rxc4 {[%clk 0:01:23.4]} 26. d6 {[%clk 0:01:36.9]}
26... Re8 {[%clk 0:00:37.8]} 27. e6 {[%clk 0:01:31.8]} 27... Nf6 {[%clk
0:00:31.8]} 28. exf7+ {[%clk 0:01:28.2]} 28... Kxf7 {[%clk 0:00:32.7]} 29. Qe6+
{[%clk 0:01:27.2]} 29... Kg7 {[%clk 0:00:33]} 30. d7 {[%clk 0:01:27.5]} 30...
Qxe6 {[%clk 0:00:31.4]} 31. dxe8=N+ {[%clk 0:01:22.7]} 1-0

[Event "Early-Titled-Tuesday-Blitz-January-23-2024"]
[Site "Chess.com"]
[Date "2024.01.23"]
[Round "3"]
[White "FMCASTE"]
[Black "Genghis_K"]
[Result "0-1"]
[WhiteElo "2487"]
[BlackElo "2853"]
[TimeControl "180+1"]
[EndTime "8:25:59 PST"]
[Termination "Genghis_K won by resignation"]

1. b3 {[%clk 0:03:00.9]} 1... Nf6 {[%clk 0:02:53]} 2. Bb2 {[%clk 0:03:01.8]}
2... g6 {[%clk 0:02:53.6]} 3. g3 {[%clk 0:03:01.5]} 3... Bg7 {[%clk 0:02:53.6]}
4. Bg2 {[%clk 0:03:02.2]} 4... c5 {[%clk 0:02:53.9]} 5. e3 {[%clk 0:03:02]} 5...
d5 {[%clk 0:02:52.8]} 6. Ne2 {[%clk 0:03:02.4]} 6... Nc6 {[%clk 0:02:52.4]} 7.
d3 {[%clk 0:03:03]} 7... e5 {[%clk 0:02:52.4]} 8. Nd2 {[%clk 0:03:02.8]} 8...
O-O {[%clk 0:02:52.4]} 9. a3 {[%clk 0:03:03.4]} 9... Be6 {[%clk 0:02:50.4]} 10.
h3 {[%clk 0:03:03.3]} 10... Re8 {[%clk 0:02:49.6]} 11. Qb1 {[%clk 0:03:01.7]}
11... Qd7 {[%clk 0:02:48.1]} 12. Qa2 {[%clk 0:03:02.2]} 12... a5 {[%clk
0:02:47.1]} 13. Rd1 {[%clk 0:03:02.6]} 13... a4 {[%clk 0:02:47.2]} 14. Qa1
{[%clk 0:03:01.9]} 14... d4 {[%clk 0:02:44.9]} 15. e4 {[%clk 0:02:54.6]} 15...
axb3 {[%clk 0:02:40.4]} 16. cxb3 {[%clk 0:02:53.6]} 16... Na5 {[%clk 0:02:41]}
17. Qc1 {[%clk 0:02:47.7]} 17... Nxb3 {[%clk 0:02:40.3]} 18. Nxb3 {[%clk
0:02:44.5]} 18... Bxb3 {[%clk 0:02:40.9]} 19. Rd2 {[%clk 0:02:38.9]} 19... Rac8
{[%clk 0:02:25.1]} 20. O-O {[%clk 0:02:37]} 20... Nh5 {[%clk 0:02:17.4]} 21. f4
{[%clk 0:02:35.1]} 21... exf4 {[%clk 0:02:15.9]} 22. gxf4 {[%clk 0:02:36]} 22...
b5 {[%clk 0:02:11.3]} 23. Qe1 {[%clk 0:02:31]} 23... Qa7 {[%clk 0:02:03.5]} 24.
Kh1 {[%clk 0:02:30.1]} 24... Rcd8 {[%clk 0:02:00.1]} 25. f5 {[%clk 0:02:30.1]}
25... c4 {[%clk 0:01:59.9]} 26. Bc1 {[%clk 0:02:22.8]} 26... c3 {[%clk
0:01:44.8]} 27. Rd1 {[%clk 0:02:22.8]} 27... Be5 {[%clk 0:01:39.3]} 28. Qh4
{[%clk 0:02:14.9]} 28... Bxd1 {[%clk 0:01:37.8]} 29. Rxd1 {[%clk 0:02:14.5]}
29... Qa4 {[%clk 0:01:37.2]} 30. Rf1 {[%clk 0:02:13.7]} 30... Qc2 {[%clk
0:01:37.6]} 31. Nf4 {[%clk 0:02:01.1]} 31... Bxf4 {[%clk 0:01:22.8]} 32. Bxf4
{[%clk 0:02:02]} 32... Qxd3 {[%clk 0:01:22.9]} 33. fxg6 {[%clk 0:01:52]} 33...
hxg6 {[%clk 0:01:20.8]} 34. Be5 {[%clk 0:01:44.8]} 34... c2 {[%clk 0:01:12.2]}
35. Qg5 {[%clk 0:01:40.2]} 35... Rd7 {[%clk 0:01:01]} 36. Kh2 {[%clk 0:01:26.9]}
36... Rxe5 {[%clk 0:00:48.7]} 37. Qxe5 {[%clk 0:01:26]} 37... Qg3+ {[%clk
0:00:49.2]} 38. Qxg3 {[%clk 0:01:25.3]} 38... Nxg3 {[%clk 0:00:49.9]} 39. Kxg3
{[%clk 0:01:26.2]} 39... d3 {[%clk 0:00:50.6]} 0-1